Cogmind - Beta 13 *** ADVENTURER MODE // 2024.04.04 @ 13:48:01 Player: ActualDio Result: Self-destructed Performance ------------- Evolutions (1) 500 Regions Visited (3) 600 Robots Destroyed (39) 195 Value Destroyed (1027) 1027 Prototype IDs (3) 60 Alien Tech Used (0) 0 Bonus (76) 76 TOTAL SCORE: 2458 Bonus ------- High Alert Combat Kills 11 Follower Combat Kills 65 Cogmind --------- Core Integrity 228/400 Matter 260/300 Energy 250/250 System Corruption 0% Temperature Cool (0) Movement Walking (120) Location -9/Materials Parts ------- > --- POWER (1) -------- Ion Engine > --- PROPULSION (4) --- Aluminum Leg Aluminum Leg Aluminum Leg Aluminum Leg > --- UTILITY (2) ------ Small Storage Unit Power Shielding > --- WEAPON (2) ------- Makeshift Sword > --- INVENTORY (8) ---- Ion Engine Light Nuclear Core Aluminum Leg Grenade Launcher Mining Laser Hammer Peak State ------------ > --- POWER ------------ Light Nuclear Core > --- PROPULSION ------- Aluminum Leg Aluminum Leg Aluminum Leg Carbon-fiber Leg > --- UTILITY ---------- Small Storage Unit Power Shielding > --- WEAPON ----------- Beam Cannon Heavy Assault Rifle > --- INVENTORY -------- Ion Engine Light Nuclear Core Grenade Launcher Mining Laser Hammer Makeshift Sword [Rating: 15] Favorites ----------- Power Ion Engine Engine Ion Engine Power Core Light Nuclear Core Propulsion Aluminum Leg Leg Aluminum Leg Wheel Compact Wheel Utility Small Storage Unit Storage Small Storage Unit Protection Power Shielding Weapon Assault Rifle Energy Cannon Beam Cannon Ballistic Gun Assault Rifle Slashing Weapon Makeshift Sword Build | -11 -10 -10 -9 ------- Run | Yrd Mat Min Mat Slots Evolved 2 | . . . 2 Power . | . . . . Propulsion 2 | . . . 2 Utility . | . . . . Weapon . | . . . . Parts Attached 30 | 6 6 8 10 Power 6 | 2 1 1 2 Engine 5 | 2 1 . 2 Core 1 | . . 1 . Reactor . | . . . . Propulsion 16 | 2 2 6 6 Treads . | . . . . Leg 10 | . . 4 6 Wheel 6 | 2 2 2 . Hover . | . . . . Flight . | . . . . Utility 2 | 1 1 . . Device . | . . . . Storage 1 | 1 . . . Processor . | . . . . Hackware . | . . . . Protection 1 | . 1 . . Artifact . | . . . . Weapon 6 | 1 2 1 2 Energy Gun . | . . . . Energy Cannon 1 | . . 1 . Ballistic Gun 4 | 1 2 . 1 Ballistic Cannon . | . . . . Launcher . | . . . . Special Weapon . | . . . . Impact Weapon . | . . . . Slashing Weapon 1 | . . . 1 Piercing Weapon . | . . . . Special Melee Weapon . | . . . . Unidentified Prototypes . | . . . . Parts Lost 6 | . . 2 4 Power . | . . . . Propulsion 3 | . . 1 2 Utility . | . . . . Weapon 3 | . . 1 2 Highest Loss Streak 4 | . . 2 4 To Critical Strikes . | . . . . Average Slot Usage (%) 96 | . 89 99 91 Engine 7 | . 13 6 5 Core 5 | . . 7 5 Leg 24 | . . 24 37 Wheel 5 | . 27 3 . Storage 13 | . 14 14 11 Protection 12 | . 5 14 11 Energy Cannon 9 | . . 12 9 Ballistic Gun 16 | . 28 15 10 Naked Turns . | . . . . Heaviest Build 17 | 12 14 16 17 Greatest Support 45 | 32 32 32 45 Greatest Overweight (x) 2 | 2 . . . Average Overweight (x) . | . . . . Largest Inventory Capacity 8 | 8 8 8 8 Average Capacity 7 | 6 8 8 8 Most Carried 8 | 5 6 8 8 Average Carried 6 | 2 2 6 7 Final Capacity 8 | 8 8 8 8 Final Carried 6 | . 5 6 6 Class Distribution -------------------- 84% | Mutant 15% | Scavenger-Mutant Dominant Class ---------------- Mutant | -10/Materials Mutant | -10/Mines Scavenger-Mutant | -9/Materials Resources | -11 -10 -10 -9 ----------- Run | Yrd Mat Min Mat Matter Collected 785 | 203 173 240 169 Remotely . | . . . . Salvage Created 1431 | . 270 623 538 Parts 86 | . 19 37 30 Haulers Intercepted . | . . . . Recyclers Shooed 1 | . . 1 . Parts Field Recycled . | . . . . Retrieved Matter . | . . . . Parts Self-Destructed . | . . . . Prevented . | . . . . Kills | -11 -10 -10 -9 ------- Run | Yrd Mat Min Mat Combat Hostiles Destroyed 34 | . 7 14 13 Guns 21 | . 7 8 6 Cannons 13 | . . 6 7 Classes Destroyed 6 | . 3 1 2 Worker 1 | . . 1 . Recycler 3 | . 1 2 . Operator 1 | . . . 1 Swarmer 11 | . 3 6 2 Grunt 21 | . 4 8 9 Sentry 2 | . . . 2 Best Kill Streak 7 | . 3 4 7 Combat Bots Only 6 | . 3 3 6 Max Kills in Single Turn 2 | . 1 2 1 Gunslinging . | . . . . Exploded . | . . . . Melee . | . . . . Uniques/NPCs Destroyed . | . . . . Combat | -11 -10 -10 -9 -------- Run | Yrd Mat Min Mat Hostile Shots Fired 218 | . 31 60 127 Missed 72 | . 11 19 42 Damage Taken 1332 | . 158 332 842 Core 265 | . 46 47 172 Absorbed by Shields . | . . . . Redirected to Shielding 27 | . . 6 21 Ignored by Resistances 404 | . 53 103 248 Core Remaining (%) 81 | 100 . 62 . Volleys Fired 106 | . 19 44 43 Largest 2 | . 2 2 2 Hottest 83 | . 40 80 83 Shots Fired 192 | . 38 79 75 Gun 143 | . 38 62 43 Cannon 49 | . . 17 32 Launcher . | . . . . Special . | . . . . Kinetic 143 | . 38 62 43 Thermal 49 | . . 17 32 Explosive . | . . . . Electromagnetic . | . . . . Robot Hit Streak 20 | . 14 20 14 Robot Miss Streak 3 | . 3 2 3 Penetration Max . | . . . . Secondary Targets 5 | . 3 2 . Max Gunslinging Chain 1 | . 1 1 . Shots Hit Robots 137 | . 26 59 52 Core Hits 63 | . 16 28 19 Critical Kills 1 | . 1 . . Critical Parts Destroyed 1 | . 1 . . Critical Strikes 2 | . 2 . . Destroy 2 | . 2 . . Melee Attacks . | . . . . Impact . | . . . . Slashing . | . . . . Piercing . | . . . . Sneak Attacks . | . . . . Combat Hostiles . | . . . . Follow-up Attacks . | . . . . Damage Inflicted 1882 | . 288 728 866 Guns 1205 | . 288 522 395 Cannons 677 | . . 206 471 Explosions . | . . . . Melee . | . . . . Ramming . | . . . . Kinetic 1205 | . 288 522 395 Thermal 677 | . . 206 471 Explosive . | . . . . Electromagnetic . | . . . . Impact . | . . . . Slashing . | . . . . Piercing . | . . . . Highest Corruption . | . . . . Average Corruption . | . . . . Corruption Purged . | . . . . Corruption Blocked . | . . . . Overload Shots . | . . . . Overflow Damage 11 | . . 11 . Projectiles 11 | . . 11 . Explosions . | . . . . Melee . | . . . . Knockbacks . | . . . . Impact . | . . . . Kinetic . | . . . . Secondary . | . . . . Self-Inflicted Damage . | . . . . Shots . | . . . . Rammed . | . . . . Targets Rammed . | . . . . Kicked . | . . . . Crushed . | . . . . Highest Temperature 317 | . 12 96 317 Average Temperature 72 | . 6 37 97 Received Heat Transfer 723 | . 84 147 492 Effects 1 | . . . 1 Interference 1 | . . . 1 Siege Activations . | . . . . Robots Corrupted . | . . . . Combat Hostiles . | . . . . Parts Fried . | . . . . Impact Corruptions . | . . . . Robots Melted . | . . . . Combat Hostiles . | . . . . Parts Melted 1 | . . . 1 Heat Transferred 1443 | . . 444 999 Parts Sabotaged . | . . . . Parts Stolen . | . . . . Parts Stripped . | . . . . Power Chain Reactions . | . . . . Alert | -11 -10 -10 -9 ------- Run | Yrd Mat Min Mat Peak Influence 413 | . 191 347 413 Initial 62 | . . 62 . Average 132 | . 103 122 202 Maximum Alert Level 2 | . . 1 2 Low Security (%) 79 | 100 100 82 53 Level 1 19 | . . 17 42 Level 2 . | . . . 3 Level 3 . | . . . . Level 4 . | . . . . Level 5 . | . . . . High Security . | . . . . Max Security . | . . . . Squads Dispatched 6 | . 1 . 5 Investigation 4 | . 1 . 3 Extermination . | . . . . Reinforcement 2 | . . . 2 Assault . | . . . . Garrison . | . . . . Intercept . | . . . . Searches Triggered . | . . . . Construction Impeded 1 | . . . 1 Haulers Reinforced . | . . . . Active Scanning Responses . | . . . . Cargo Convoy Interrupts . | . . . . Stealth | -11 -10 -10 -9 --------- Run | Yrd Mat Min Mat Distress Signals 3 | . . . 3 Communications Jammed . | . . . . Distress Signals . | . . . . Times Spotted 46 | . 8 14 24 Peak Tracking Total 8 | . 4 3 8 Tactical Retreats 1 | . . . 1 Traps | -11 -10 -10 -9 ------- Run | Yrd Mat Min Mat Traps Triggered 3 | . 2 . 1 Indirectly . | . . . . Trap Hack Attempts . | . . . . Triggered . | . . . . Disarmed . | . . . . Reprogrammed . | . . . . Reused . | . . . . Traps Extracted . | . . . . Installed . | . . . . Triggered . | . . . . Machines | -11 -10 -10 -9 ---------- Run | Yrd Mat Min Mat Machines Disabled . | . . . . Max in Single Turn . | . . . . Machines Repaired . | . . . . Machines Dismantled . | . . . . Machines Sabotaged . | . . . . Overloaded Fab Kills . | . . . . Hacking | -11 -10 -10 -9 --------- Run | Yrd Mat Min Mat Machines Accessed 5 | . 3 . 2 Terminals 3 | . 1 . 2 Fabricators . | . . . . Repair Stations . | . . . . Recycling Units 2 | . 2 . . Scanalyzers . | . . . . Garrison Access . | . . . . Total Hacks 19 | . 11 . 8 Successful 11 | . 8 . 3 Failed 8 | . 3 . 5 Catastrophic . | . . . . Database Lockouts . | . . . . Manual 5 | . 3 . 2 Terminals 14 | . 6 . 8 Fabricators . | . . . . Repair Stations . | . . . . Recycling Units 5 | . 5 . . Scanalyzers . | . . . . Garrison Access . | . . . . Terminal Hacks 7 | . 4 . 3 Robot Analysis 1 | . . . 1 Prototype ID Bank 2 | . 1 . 1 Branch Access Points 1 | . 1 . . Terminal Index 1 | . 1 . . Hauler Manifests 2 | . 1 . 1 Fabricator Hacks . | . . . . Repair Station Hacks . | . . . . Recycling Unit Hacks 4 | . 4 . . Report Inventory 2 | . 2 . . Retrieve Components 2 | . 2 . . Scanalyzer . | . . . . Garrison Access Hacks . | . . . . Unauthorized Hacks . | . . . . Terminals . | . . . . Fabricators . | . . . . Repair Stations . | . . . . Recycling Units . | . . . . Scanalyzers . | . . . . Garrison Access . | . . . . Data Cores Recovered . | . . . . Used . | . . . . Hacking Detections 4 | . 2 . 2 Full Trace Events 3 | . 1 . 2 Feedback Events . | . . . . Feedback Blocked . | . . . . Robot Schematics Acquired . | . . . . Robots Built . | . . . . Authchips . | . . . . Time . | . . . . Total Robot Build Rating . | . . . . Part Schematics Acquired . | . . . . Parts Built . | . . . . Authchips . | . . . . Time . | . . . . Total Part Build Rating . | . . . . Parts Repaired . | . . . . Time . | . . . . Parts Recycled . | . . . . Recycled Matter . | . . . . Retrieved Matter . | . . . . Retrieved Components 9 | . 9 . . Parts Scanalyzed . | . . . . Part Schematics Acquired . | . . . . Parts Damaged . | . . . . Bothacking | -11 -10 -10 -9 ------------ Run | Yrd Mat Min Mat Used RIF Installer . | . . . . Robots Hacked . | . . . . Non-combat . | . . . . Combat . | . . . . Robot Hacks Applied . | . . . . Relay Couplers Released . | . . . . Fabnet Peak Effective % . | . . . . Robots Rewired . | . . . . Allies Hacked . | . . . . Hacks Repelled . | . . . . Allies | -11 -10 -10 -9 -------- Run | Yrd Mat Min Mat Total Allies 2 | . . 2 . Largest Group 2 | . . 2 2 Highest-Rated Group 38 | . . 38 38 Highest-Rated Ally 31 | . . 31 31 Total Orders . | . . . . Ally Attacks 10 | . . . 10 Total Damage 102 | . . . 102 Kills 3 | . . . 3 Allies Corrupted . | . . . . Allies Melted . | . . . . Intel | -11 -10 -10 -9 ------- Run | Yrd Mat Min Mat Robot Analysis Total 1 | . . . 1 Derelict Logs Recovered 2 | . . 2 . Drone Launches . | . . . . Drone Recoveries . | . . . . Exploration | -11 -10 -10 -9 ------------- Run | Yrd Mat Min Mat Turns Passed 2098 | 70 250 1348 430 Spaces Moved 1471 | 64 165 1002 240 Core 32 | 32 . . . Treads . | . . . . Legs 1143 | . . 903 240 Wheels 296 | 32 165 99 . Hover . | . . . . Flight . | . . . . Fastest Speed 50 | 50 100 100 120 Average Speed 115 | 89 100 118 120 Slowest Speed 150 | 150 100 120 120 Overloaded Moves . | . . . . Propulsion Burnouts . | . . . . Robots Hopped . | . . . . Cave-ins Triggered . | . . . . Exploration Rate (%) 42 | 5 31 100 33 Regions Visited 3 Branch Regions 1 Pre-discovered Areas 1 | . . 1 . Known Exits Taken 1 | . 1 . . Unknown Exits Taken 2 | 1 . 1 . Scrap Searched 1 | . . 1 . Spaces Dug . | . . . . Terrain Destroyed . | . . . . Melee . | . . . . Projectile . | . . . . AOE . | . . . . Terrain Rammed . | . . . . Walls Destroyed . | . . . . Machines Disabled . | . . . . Actions | -11 -10 -10 -9 --------- Run | Yrd Mat Min Mat Total 1696 | 77 215 1096 308 Wait 38 | . 13 22 3 Move 1468 | 63 164 1001 240 Hop . | . . . . Pick Up 33 | 5 11 10 7 Fast Attach 3 | 2 . 1 . Attach 13 | 3 4 1 5 Detach . | . . . . Swap 14 | 1 2 6 5 Drop 21 | 3 2 11 5 Fire 106 | . 19 44 43 Melee . | . . . . Ram . | . . . . Kick . | . . . . Crush . | . . . . Escape Stasis . | . . . . Rewire . | . . . . Trap . | . . . . Miscellaneous . | . . . . Route ------- -11/Scrapyard -10/Materials (discovered 2 exits: *Min x2) -10/Mines (discovered 3 exits: *Mat x2 / [*Sub]) -9/Materials (discovered 2 exits: [*Min x2]) History --------- Turn | Location | Event 12 | -11/Scrapyard | Discovered new exit (range 15) 71 | -11/Scrapyard | Entered Materials 174 | -10/Materials | Identified exit to Mines 313 | -10/Materials | Build established: Mutant 321 | -10/Materials | Entered Mines 325 | -10/Mines | Discovered new exit (range 8) 532 | -10/Mines | A weapon hastily lodged in a ceiling crevice suddenly fell to the ground 627 | -10/Mines | Learned Materials interactive machine intel 906 | -10/Mines | Discovered new exit (range 8) 1046 | -10/Mines | Discovered new exit (range 6) 1669 | -10/Mines | Entered Materials 1669 | -9/Materials | Accompanied by 2 allies 1669 | -9/Materials | Evolved 2 slots: Propulsion x2 1670 | -9/Materials | Loaded intel: 17 interactive machine locations 1674 | -9/Materials | Led the pair of lost Derelicts to an unsafe place 1679 | -9/Materials | Discovered new exit (range 4) 1987 | -9/Materials | Discovered new exit (range 12) 2085 | -9/Materials | Build established: Scavenger-Mutant 2099 | -9/Materials | Self-destructed Last Messages --------------- Acquired 50 matter. Fusion Modulator explodes. U-05 Engineer destroyed. Aluminum Leg destroyed. Terminal disabled. W-16 Scout distress signal alerts nearby ally. U-05 Engineer lays Concrete. Acquired Aluminum Leg. U-05 Engineer builds a Wall. U-05 Engineer lays Concrete. R-06 Scavenger collects Ion Engine. U-05 Engineer lays Concrete. Hvy. Assault Rifle destroyed. U-05 Engineer lays Concrete. R-06 Scavenger collects Aluminum Leg. U-05 Engineer builds a Wall. U-05 Engineer lays Concrete. R-06 Scavenger collects Ion Engine. U-05 Engineer lays Concrete. U-05 Engineer builds a Wall. Map ----- +----------------------------------------------------+ | ??????????????# [ #?# ""?????????????# " | | ??????????????#########+#?? ""?????????????# " | | ??????????????????????# #??? ????????????# " | | ??????????????????????# #???? ????????????# | | ??????????????????????# ######+#######?????#|| | | ??????????????????????# [%! #?????#|| % | | ??????????????????????#!![= #?????#| | | ??????????????????????#=%*!% /########## ## | | ??????????????????????##" * " ##?? | | ???????????????????????#" " #??? | | ???????????????????????#; " #??? | | ???????????????????????# " #??? | | ???????????????????????# " #??? | | ???????????????????????+ # #??? | | ???????????????????????# # #??? | | ??????????????????????## ;### #? #??? | | ??????????????????????# "# #? #??? | | ??????????????????????# ""# #??#######??? | | ??????????????????????#ggg ||# #???????????? | | ??????????????????????# < ""# #???????????? | | ??????????????????????# ||# #???????????? | | ??????????????????????# ""# #???????????? | | ??????????????????????# "# #???????????? | | ?"T"????????????######## #### a #???????????? | | ?"""????????????# # a ????????? | | ????????????????# + @ ????????? | | ????????????????# """ # ????????? | | ????????????????# """ # ????????? | | ????????????????# """ ######+## k ?????????? | | ????????????????# #????????? ####?????????? | | ????????????????########?????????? #????????????? | | ??????????????????????????????????? #????????????? | | ???????????T????????????????????????#????????????? | | ?????????????????????????????????????????????????? | | ?????????????????????????????????????????????????? | | ?????????????????????????????????????????????????? | | ?????????????????????????????????????????????????? | | ????????????????????"""??????????????????????????? | | ?????????????????????R"??????????????????????????? | | ????????????????????"""??????????????????????????? | | ???????????????????????????????????????""????????" | | ???????????????????????????????????????"T????????" | | ???????????????????????????????????????""????????? | | ?????????????????????????????????????????????????? | | ?????????????????????????????????????????????????? | | ?????????????????????""??????????????????????????? | | ?????????????????????"T??????????????????????????? | | ?????????????????????""??????????????????????????? | | ?????????????????????????????????????????????????? | | ?????????????????????????????????????????????????? | +----------------------------------------------------+ Best States ------------- Heat Dissipation 28 Energy Generation 14 Energy Capacity 250 Matter Stores 300 Matter Capacity 300 Sight Range 16 Terrain Scan Density 10 Resistance: KI 20 Resistance: TH 20 Resistance: EX 20 Resistance: EM 20 Resistance: I 20 Resistance: S 20 Resistance: P 20 Power Shielding 33 Evasion (%) 55 Offensive Hacking 10 Item Schematics ----------------- None Robot Schematics ------------------ None Fabricated ------------ Nothing Alien Tech Used ----------------- None Achievements -------------- None Challenges ------------ None Game ------ Seed ThermalNuclearLink Manual? 0 Play Time 00:17:01 Cumulative 12.7 hours Start 2024.04.04 @ 13:05:19 End 2024.04.04 @ 13:48:01 Sessions 1 Manual Loads 0 Difficulty Adventurer Special Mode None Game No. 16 Rogue 0 Adventurer 16 Explorer 0 Win Type - Total 0 Types 0/0/0/0/0/0/0/0/0 Lore% 15 Gallery% 22 Achievement% 12 Wizard Run 0 Options --------- Layout 1 ASCII 0 Keyboard 0 Movement Mouse Keybinds 0 Fullscreen 1 Font 24/Smallcaps Map View 50x35 Zoom Use 0% Tactical HUD 0 Map Filters NONE Filters NONE Steam 0 RUN: c587a283-329f-4bb3-b1b3-11094e694ff5